bitfinex-derivatives/quotes_ETHF0:USTF0_20240923
["timestamp","ask_amount","ask_price","bid_price","bid_amount"]
[1727128064406,0.37661,2655.1,2654.8,0.37665]
[1727128070410,0.37661,2655.1,2654.8,0.36665]
[1727128074919,0.37661,2655.1,2654.9,0.37664]
[1727128077121,3.2078,2655.2,2654.7,0.37665]
[1727128077315,0.37664,2654.9,2654.7,0.37665]
[1727128077820,2.66844,2654.9,2654.7,0.37665]
[1727128085021,0.37665,2654.8,2654.6,3.58448]
[1727128085216,2.66845,2654.9,2654.6,3.58448]
[1727128088331,2.66845,2654.9,2654.6,0.37668]
[1727128088514,2.66845,2654.9,2654.6,1.36084512]
[1727128089319,0.37665,2654.8,2654.7,0.98416512]
[1727128089517,3.26470331,2654.9,2654.6,1.36084512]
[1727128089518,3.64135331,2654.9,2654.6,1.36084512]
[1727128089825,0.37666,2654.8,2654.6,0.98416512]
[1727128090320,1.34956331,2654.8,2654.6,0.98416512]
[1727128091210,0.97290331,2654.7,2654.6,0.98416512]
[1727128101420,1.84836314,2654.8,2654.6,0.98416512]
[1727128101628,0.9814099,2654.7,2654.6,0.98416512]
[1727128102916,0.98136008,2654.7,2654.6,0.98416512]
[1727128103330,1.84836314,2654.8,2654.6,0.98416512]
[1727128103527,0.98135317,2654.7,2654.6,0.98416512]
[1727128103728,1.84836314,2654.8,2654.6,0.98416512]
[1727128104122,0.98135185,2654.7,2654.6,0.98416512]
[1727128104822,0.98137483,2654.7,2654.6,0.98416512]
[1727128105126,1.84836314,2654.8,2654.6,0.98416512]
[1727128105723,1.47170314,2654.7,2654.6,0.98416512]
[1727128106126,1.47170314,2654.7,2654.5,0.98416512]
[1727128106328,0.9813893,2654.6,2654.5,0.98416512]
[1727128106528,0.9813893,2654.6,2654.5,2.1353435]
[1727128107235,0.9813893,2654.6,2654.5,1.15117838]
[1727128108226,0.9813893,2654.6,2654.5,2.61916323]
[1727128110819,0.9813893,2654.6,2654.5,2.61840326]
[1727128111020,0.9813893,2654.7,2654.5,2.61840326]
[1727128111222,0.9813893,2654.7,2654.6,2.99502266]
[1727128111526,0.9813893,2654.7,2654.6,4.21502266]
[1727128111925,1.47170314,2654.9,2654.7,0.37667]
[1727128111926,0.9813893,2654.8,2654.7,0.37667]
[1727128112129,0.9813893,2654.8,2654.7,6.96384805]
[1727128112425,0.9813893,2654.9,2654.8,0.37665]
[1727128112630,0.98156248,2654.9,2654.8,1.36453251]
[1727128112827,1.47170314,2655.0,2654.9,0.37664]
[1727128113033,1.47170314,2655.0,2654.9,2.73774]
[1727128113526,1.47170314,2655.0,2654.9,3.72562251]
[1727128113836,1.47170314,2655.1,2655.0,0.37662]
[1727128114330,1.47170314,2655.1,2655.0,4.80442]
[1727128114629,0.98162549,2655.2,2655.1,0.37661]
[1727128114826,0.98162549,2655.2,2655.1,12.77493795]
[1727128115126,0.98162549,2655.3,2655.2,0.3766]
[1727128115325,0.98162549,2655.5,2655.4,0.37657]
[1727128115530,0.98162549,2655.6,2655.5,0.37655]
[1727128115721,0.98162549,2655.8,2655.5,14.55225452]
[1727128115924,0.98162549,2655.8,2655.7,3.58432]
[1727128116123,0.98162549,2655.8,2655.7,0.37652]
[1727128116326,0.98162549,2655.8,2655.7,9.55680406]
[1727128116524,0.98162549,2655.9,2655.8,0.37651]
[1727128116932,1.47170314,2656.1,2655.9,0.3765]
[1727128116933,0.98162549,2656.0,2655.9,0.3765]
[1727128117128,0.98162549,2656.2,2656.0,0.37648]
[1727128117327,0.98162549,2656.3,2656.1,2.224]
[1727128117527,0.98162549,2656.5,2656.3,0.37643]
[1727128117924,0.98162549,2656.6,2656.3,3.58423]
[1727128118233,0.98162549,2656.6,2656.4,0.37642]
[1727128118425,0.98162549,2656.6,2656.3,0.37643]
[1727128118629,3.35652549,2656.7,2656.3,0.37643]
[1727128119132,3.35652549,2656.7,2656.2,1.22]
[1727128119133,0.98162549,2656.7,2656.2,1.22]
[1727128119734,4.18942549,2656.8,2656.4,0.37642]
[1727128119931,4.56579549,2656.8,2656.4,0.37642]
[1727128120628,4.56579549,2656.8,2656.3,0.37643]
[1727128121332,3.58417,2656.8,2656.3,0.37643]
[1727128129944,0.37637,2656.8,2656.3,0.37643]
[1727128131837,0.37638,2656.7,2656.3,0.37643]
[1727128135144,0.37638,2656.7,2656.3,0.36643]
[1727128136345,0.3764,2656.6,2656.2,4.80425]
[1727128137346,0.37639,2656.7,2656.3,0.37644]
[1727128145149,0.37639,2656.7,2656.4,1.22]
[1727128146144,2.3626,2656.6,2656.4,1.22]
[1727128148848,3.764,2656.5,2656.3,1.22]
[1727128149051,2.3168,2656.5,2656.3,1.22]
[1727128149353,2.1727,2656.4,2656.3,1.22]
[1727128150350,2.1727,2656.4,2656.0,1.22]
[1727128150553,2.54913,2656.4,2656.0,1.22]
[1727128150854,3.2078,2656.3,2656.0,1.22]
[1727128151056,0.37646,2656.2,2656.0,1.22]
[1727128159656,1.35147747,2656.2,2656.0,1.22]
[1727128160561,0.97501747,2656.1,2656.0,1.22]
[1727128161656,0.97501747,2656.1,2656.0,2.19962639]
[1727128161858,0.97501747,2656.1,2656.0,1.22]
[1727128162563,1.83898621,2656.2,2656.0,2.19962639]
[1727128162860,1.35851142,2656.1,2656.0,2.19962639]
[1727128163759,1.35851142,2656.1,2656.0,1.22]
[1727128163760,1.83899621,2656.1,2656.0,1.22]
[1727128165658,1.35840821,2656.1,2656.0,1.22]
[1727128166360,1.83899621,2656.1,2656.0,1.22]
[1727128166561,0.37647,2656.1,2656.0,1.22]
[1727128170963,0.37647,2656.1,2656.0,2.19962639]
[1727128170964,1.35831947,2656.1,2656.0,2.19962639]
[1727128173670,1.35831947,2656.1,2656.0,0.97962639]
[1727128176671,1.35831947,2656.1,2655.9,0.97962639]
[1727128176974,2.1463,2656.0,2655.9,0.97962639]
[1727128177171,2.1463,2656.0,2655.9,2.12767563]
[1727128177478,2.1463,2656.0,2655.9,2.61748883]
[1727128178064,2.1463,2656.0,2655.9,1.14804924]
[1727128178387,2.1463,2656.0,2655.9,2.12520092]
[1727128178875,3.12814947,2656.0,2655.9,0.98714492]
[1727128179573,3.50462947,2656.0,2655.9,0.98714492]
[1727128179764,5.70042947,2656.0,2655.8,2.20714492]
[1727128180370,0.3765,2655.9,2655.8,1.22]
[1727128180569,1.35813884,2655.9,2655.8,1.22]
[1727128181071,0.3765,2655.9,2655.8,1.22]
[1727128181271,6.18111621,2656.0,2655.8,1.22]
[1727128181473,0.98158344,2655.9,2655.8,1.22]
[1727128182277,6.18111621,2656.0,2655.8,1.22]
[1727128182477,0.98156052,2655.9,2655.8,1.22]
[1727128182682,6.18111621,2656.0,2655.8,1.22]
[1727128183876,0.9815342,2655.9,2655.8,1.22]
[1727128184377,0.98154872,2655.9,2655.8,1.22]
[1727128184778,6.18111621,2656.0,2655.8,1.22]
[1727128185174,0.98164488,2655.9,2655.8,1.22]
[1727128185578,6.18111621,2656.0,2655.8,1.22]
[1727128185983,0.98165182,2655.9,2655.8,2.20714492]
[1727128186375,0.98165182,2655.9,2655.8,1.22]
[1727128186686,0.98165182,2655.9,2655.8,2.20714492]
[1727128187385,0.98165182,2655.9,2655.8,1.22]
[1727128187883,1.35815182,2655.9,2655.8,2.20714492]
[1727128188086,1.35815182,2655.9,2655.8,1.22]
[1727128189382,1.35815182,2655.9,2655.8,2.20714492]
[1727128189579,1.35815182,2655.9,2655.8,1.22]
[1727128190378,5.12375182,2655.9,2655.8,0.98714492]
[1727128190578,13.91465,2655.9,2655.6,0.98714492]
[1727128190785,13.91465,2655.9,2655.5,1.46943959]
[1727128190786,0.37654,2655.6,2655.5,0.98714492]
[1727128190985,1.35820573,2655.6,2655.5,0.98714492]
[1727128191287,5.88350573,2655.6,2655.5,0.98714492]
[1727128191781,8.2909,2655.6,2655.3,0.98714492]
[1727128191991,1.35803978,2655.4,2655.2,0.98714492]
[1727128192188,0.98141837,2655.3,2655.1,4.19494492]
[1727128192487,0.3766,2655.2,2655.1,0.98702444]
[1727128192788,2.5609,2655.2,2655.1,0.98702444]
[1727128192987,2.5609,2655.2,2655.0,2.20702444]
[1727128194287,0.37661,2655.1,2655.0,1.22]
[1727128194888,2.56091,2655.2,2655.0,1.22]
[1727128196293,0.37661,2655.1,2655.0,1.22]
[1727128202500,0.37664,2654.9,2654.8,2.3305]
[1727128202794,0.37664,2654.9,2654.6,3.58448]
[1727128202994,2.1977,2654.8,2654.6,3.58448]
[1727128203889,2.1977,2654.8,2654.6,3.2078]
[1727128205101,2.1977,2654.8,2654.5,6.19579]
[1727128210903,2.57436,2654.8,2654.5,6.19579]
[1727128212400,2.57436,2654.8,2654.5,5.8191]
[1727128215412,2.57436,2654.8,2654.5,6.19579]
[1727128215705,2.57436,2654.8,2654.5,5.8191]
[1727128221407,2.57436,2654.8,2654.5,4.5991]
[1727128223313,2.57436,2654.8,2654.5,2.2835]
[1727128223804,2.57436,2654.8,2654.4,3.8801]
[1727128228418,2.57436,2654.8,2654.5,0.37669]
[1727128228615,2.57436,2654.8,2654.5,1.96459]
[1727128229719,2.1977,2654.8,2654.5,1.96459]
[1727128230615,3.58445,2654.9,2654.5,1.96459]
[1727128231023,3.2078,2654.9,2654.5,1.5879]
[1727128231324,3.2078,2654.9,2654.7,0.37666]
[1727128231519,3.2078,2654.9,2654.8,1.9853]
[1727128232217,3.2078,2655.3,2654.8,12.9717]
[1727128232419,0.98141837,2655.4,2655.3,0.37658]
[1727128232620,0.98141837,2655.7,2655.3,3.2078]
[1727128232819,4.82881369,2656.2,2655.6,3.2078]
[1727128232820,0.98141837,2656.1,2655.6,3.2078]
[1727128233122,0.98141837,2656.3,2656.0,4.4278]
[1727128233309,0.98141837,2656.5,2656.3,0.37643]
[1727128233538,4.18921837,2656.6,2656.4,0.37643]
[1727128234515,3.2078,2656.6,2656.4,0.37643]
[1727128235025,3.2078,2656.6,2656.4,0.37641]
[1727128235218,0.98141837,2656.9,2656.5,1.22]
[1727128235521,0.98141837,2657.1,2656.5,1.22]
[1727128235825,2.93571837,2657.2,2656.5,4.4278]
[1727128236017,6.14351837,2657.2,2656.5,4.4278]
[1727128236420,6.14351837,2657.2,2656.7,0.37638]
[1727128236421,5.1621,2657.2,2656.7,0.37638]
[1727128239317,5.1621,2657.2,2656.7,1.59638]
[1727128239716,3.2078,2657.2,2656.9,0.37635]
[1727128239917,3.2078,2657.2,2657.0,0.37633]
[1727128240134,3.2078,2657.2,2657.1,0.37633]
[1727128240323,1.9906,2657.5,2657.1,5.35953]
[1727128240533,1.8144,2657.6,2657.1,1.59633]
[1727128240716,2.19066,2657.6,2657.1,1.59633]
[1727128241218,1.8144,2657.6,2657.1,1.59633]
[1727128242226,2.19066,2657.6,2657.1,1.59633]
[1727128242524,1.8144,2657.6,2657.1,1.59633]
[1727128245025,1.8144,2657.6,2657.2,0.37631]
[1727128245229,1.8144,2657.6,2657.3,1.59629]
[1727128245427,1.8144,2657.6,2657.3,1.22]
[1727128250337,3.2078,2657.7,2657.5,1.59627]
[1727128250632,3.2078,2657.7,2657.6,0.37626]
[1727128251835,0.37619,2658.1,2657.7,0.37624]
[1727128251836,3.8049,2658.0,2657.7,0.37624]
[1727128252028,3.8049,2658.0,2657.7,1.59624]
[1727128253334,3.8049,2658.0,2657.7,1.22]
[1727128254939,3.8049,2658.0,2657.7,3.49513]
[1727128255340,3.8049,2658.0,2657.8,0.37622]
[1727128256138,3.58396,2658.3,2657.9,4.13861]
[1727128256351,3.777,2658.2,2657.9,0.37621]
[1727128256539,3.777,2658.2,2657.7,3.1189]
[1727128256540,3.777,2658.2,2657.8,0.37622]
[1727128258038,3.777,2658.2,2657.7,3.49514]
[1727128258238,0.37622,2657.9,2657.6,3.2078]
[1727128259745,1.908,2657.8,2657.6,3.2078]
[1727128260128,1.8731,2657.7,2657.6,3.2078]
[1727128260338,1.8731,2657.7,2657.5,1.22]
[1727128260642,1.9682,2657.6,2657.5,1.22]
[1727128262141,2.34446,2657.6,2657.5,1.22]
[1727128262341,5.7314,2657.6,2657.0,3.2078]
[1727128262644,1.9682,2657.6,2657.0,3.2078]
[1727128262840,4.14848,2657.5,2656.9,1.22]
[1727128263042,0.37634,2657.0,2656.9,1.22]
[1727128263339,0.37634,2657.0,2656.6,1.885]
[1727128263340,1.22,2657.2,2656.5,3.2078]
[1727128263643,0.3764,2656.6,2656.5,3.2078]
[1727128264040,0.3764,2656.6,2656.3,1.22]
[1727128264041,3.2078,2656.6,2656.3,1.22]
[1727128264238,0.37643,2656.4,2656.3,1.22]
[1727128264442,0.37645,2656.3,2655.9,0.37649]
[1727128264642,0.37645,2656.2,2655.8,8.15841477]
[1727128264836,1.8278,2656.1,2655.8,5.14191477]
[1727128265037,0.37648,2656.0,2655.8,5.14191477]
[1727128265238,0.37648,2656.0,2655.6,5.8478]
[1727128265738,3.2078,2656.0,2655.3,2.64]
[1727128265944,0.37649,2656.0,2655.3,5.8478]
[1727128266142,0.37649,2656.0,2655.6,3.2078]
[1727128266646,0.37649,2656.0,2655.6,5.8478]
[1727128267752,2.25716,2656.2,2655.7,0.37652]
[1727128269349,1.8807,2656.2,2655.8,0.3765]
[1727128269652,1.8807,2656.2,2655.9,0.37649]
[1727128270746,2.25716,2656.2,2655.8,3.01651]
[1727128271054,0.37647,2656.1,2655.8,2.64]
[1727128272240,2.25716,2656.2,2655.8,2.64]
[1727128274151,1.9798,2656.4,2656.1,2.64]
[1727128274343,1.7174,2656.7,2656.3,2.64]
[1727128274563,1.7174,2656.7,2656.6,0.3764]
[1727128274745,1.7174,2656.7,2656.5,0.3764]
[1727128275246,1.7174,2656.7,2656.4,3.2078]
[1727128275452,1.7174,2656.7,2656.5,0.37641]
[1727128276759,1.7174,2656.7,2656.6,0.3764]
[1727128277350,1.7174,2656.7,2656.5,0.37641]
[1727128277647,1.7174,2656.7,2656.4,3.58422]
[1727128278541,1.7174,2656.7,2656.5,0.37641]
[1727128283551,1.7174,2656.7,2656.4,3.2078]
[1727128283552,2.09379,2656.7,2656.4,3.2078]
[1727128283753,0.3764,2656.6,2656.4,3.2078]
[1727128284749,1.7174,2656.7,2656.4,3.2078]
[1727128284750,2.09379,2656.7,2656.4,3.2078]
[1727128287249,1.7126,2656.6,2656.4,3.2078]
[1727128288454,1.7126,2656.6,2656.4,3.58422]
[1727128289851,1.7126,2656.6,2656.4,0.37642]
[1727128292655,5.2968,2656.6,2656.3,0.37643]
[1727128292852,0.37641,2656.5,2655.9,9.586]
[1727128293163,0.37641,2656.5,2656.2,0.37645]
[1727128294054,0.37643,2656.4,2656.1,0.37646]
[1727128294255,2.17523,2656.4,2656.1,0.37646]
[1727128294760,1.7988,2656.4,2656.1,0.37646]
[1727128296054,1.7988,2656.4,2656.0,0.37647]
[1727128296256,0.37645,2656.2,2655.9,3.2078]
[1727128296467,1.6853,2656.1,2655.9,3.58429]
[1727128296766,3.82247,2656.1,2655.9,0.37649]
[1727128296956,3.446,2656.1,2655.7,1.6955]
[1727128297258,3.446,2656.1,2656.0,0.37648]
[1727128300454,0.97090851,2656.5,2655.9,4.18390507]
[1727128300657,4.42750851,2656.5,2656.2,0.37645]
[1727128300858,4.42750851,2656.5,2655.9,5.17930507]
[1727128301064,3.4566,2656.5,2656.4,0.37643]
[1727128301268,1.45636277,2656.6,2656.5,0.37641]
[1727128301658,5.22036277,2656.6,2656.5,0.37641]
[1727128301992,4.74508994,2656.6,2656.4,0.37642]
[1727128302156,0.98108994,2656.6,2656.3,0.97610507]
[1727128302562,0.98108994,2656.6,2656.4,0.37643]
[1727128305065,0.98108994,2656.6,2656.5,0.37641]
[1727128310067,1.45636277,2656.7,2656.6,0.3764]
[1727128310068,0.98108994,2656.7,2656.6,0.3764]
[1727128310463,4.44898994,2656.8,2656.6,0.3764]
[1727128310671,0.98108994,2656.7,2656.6,0.3764]
[1727128311472,4.44898994,2656.8,2656.7,0.37638]
[1727128311665,4.44898994,2656.8,2656.5,0.97610507]
[1727128311666,4.44898994,2656.8,2656.6,0.37639]
[1727128311967,0.98108994,2656.7,2656.6,0.37639]
[1727128313369,0.98108994,2656.7,2656.6,0.3764]
[1727128317971,0.98108994,2656.7,2656.6,1.5964]
[1727128318167,0.98108994,2656.8,2656.7,0.37638]
[1727128318365,0.98108994,2656.8,2656.7,10.00848507]
[1727128318565,0.98108994,2657.1,2656.7,17.51610753]
[1727128318762,0.98108994,2657.1,2657.0,0.37634]
[1727128319073,0.98108994,2657.1,2657.0,1.36280736]
[1727128319270,0.98108994,2657.1,2657.0,3.58414]
[1727128320274,4.59778994,2657.2,2657.0,3.2078]
[1727128320474,0.98108994,2657.1,2657.0,3.2078]
[1727128321177,0.98108994,2657.1,2657.0,6.971]
[1727128321372,3.6167,2657.2,2657.0,6.971]
[1727128321373,2.82008994,2657.2,2657.0,6.971]
[1727128321603,2.82008994,2657.2,2657.1,1.22]
[1727128322278,1.839,2657.2,2657.1,1.22]
[1727128322579,0.98108994,2657.3,2657.1,5.35953]
[1727128323266,0.98108994,2657.4,2657.1,5.35953]
[1727128323467,0.98108994,2657.3,2657.2,0.37631]
[1727128323678,0.98108994,2657.3,2657.2,2.22571]
[1727128324077,0.98108994,2657.4,2657.3,0.3763]
[1727128324875,0.98108994,2657.4,2657.2,0.3763]
[1727128327268,1.35737994,2657.4,2657.0,3.58413]
[1727128327470,1.35737994,2657.4,2657.1,1.22]
[1727128328978,0.37629,2657.4,2657.1,1.22]
[1727128329285,1.35737994,2657.4,2657.1,1.22]
[1727128329978,0.37629,2657.4,2657.1,1.59633]
[1727128333777,0.37629,2657.4,2657.1,1.22]
[1727128333985,4.94296994,2657.5,2657.2,0.37631]
[1727128334182,3.96188,2657.5,2657.3,1.22]
[1727128335691,3.5856,2657.5,2657.3,1.22]
[1727128335883,3.5856,2657.5,2657.4,0.37628]
[1727128336094,3.96187,2657.5,2657.3,1.59629]
[1727128336296,3.96187,2657.5,2657.3,1.5963]
[1727128336595,3.96187,2657.5,2657.3,1.22]
[1727128337497,3.5856,2657.5,2657.3,1.22]
[1727128338486,3.96187,2657.5,2657.3,1.5963]
[1727128340386,3.96187,2657.5,2657.3,1.22]
[1727128348506,3.96187,2657.5,2657.3,1.5963]
[1727128350106,3.5856,2657.5,2657.4,0.37628]
[1727128350296,3.5856,2657.5,2657.3,1.59629]
[1727128350798,3.5856,2657.5,2657.4,0.37628]
[1727128351509,3.96188,2657.5,2657.1,4.19426736]
[1727128351713,3.5856,2657.5,2657.4,1.22]
[1727128351895,3.96187,2657.5,2657.1,4.19426736]
[1727128352209,3.96187,2657.5,2657.4,1.22]
[1727128354104,2.19697,2657.5,2657.4,1.22]
[1727128356100,1.8207,2657.5,2657.4,5.35948]
[1727128356803,1.8207,2657.5,2657.4,1.22]
[1727128359909,0.98108994,2657.6,2657.5,0.37627]
[1727128360115,0.98108994,2657.6,2657.5,4.13947]
[1727128360312,0.98108994,2657.6,2657.5,0.37627]
[1727128361322,0.98108994,2657.6,2657.4,1.22]
[1727128361614,0.98108994,2657.6,2657.4,2.20646736]
[1727128361802,0.98108994,2657.6,2657.5,0.37627]
[1727128362400,1.83260277,2657.7,2657.5,0.37627]
[1727128362611,1.83260277,2657.7,2657.6,1.22]
[1727128363003,1.45636277,2657.7,2657.6,1.22]
[1727128363516,7.28035703,2657.8,2657.6,1.22]
[1727128364513,0.37624,2657.7,2657.6,1.22]
[1727128365719,2.31805703,2657.7,2657.6,1.22]
[1727128366010,1.94181703,2657.7,2657.6,1.22]
[1727128366214,7.28035703,2657.8,2657.6,1.22]
[1727128367313,1.94181703,2657.7,2657.6,1.22]
[1727128367617,7.28035703,2657.8,2657.6,1.22]
[1727128367913,1.94181703,2657.7,2657.6,1.22]
[1727128368510,7.28035703,2657.8,2657.6,1.22]
[1727128368813,1.94181703,2657.7,2657.6,1.22]
[1727128370513,7.28035703,2657.8,2657.6,1.22]
[1727128370706,1.94181703,2657.7,2657.6,1.22]
[1727128371304,7.28035703,2657.8,2657.6,1.22]
[1727128371717,6.90411703,2657.8,2657.6,1.59625]
[1727128371907,6.90411703,2657.8,2657.7,0.37624]
[1727128372312,1.94181703,2657.8,2657.7,0.37624]
[1727128372512,0.98301524,2657.9,2657.8,0.37623]
[1727128372722,0.98301524,2657.9,2657.8,14.60387141]
[1727128372905,0.98301524,2658.0,2657.8,6.12334938]
[1727128373111,1.85071286,2658.1,2657.9,2.12767257]
[1727128373311,1.85071286,2658.1,2658.0,1.22]
[1727128374320,1.47452286,2658.1,2658.0,1.22]
[1727128377512,3.52340286,2658.2,2658.0,1.22]
[1727128378325,0.98261257,2658.1,2658.0,1.5962]
[1727128378623,3.52340286,2658.2,2658.0,1.5962]
[1727128379017,0.9825468,2658.1,2658.0,1.5962]
[1727128379218,0.98248777,2658.1,2658.0,1.5962]
[1727128381027,0.98248777,2658.1,2658.0,1.22]
[1727128381813,1.47452286,2658.1,2658.0,1.22]
[1727128382619,1.85070286,2658.1,2658.0,1.22]
[1727128383219,1.47452286,2658.1,2658.0,1.22]
[1727128383421,3.52340286,2658.2,2658.0,1.22]
[1727128383722,1.85070286,2658.1,2658.0,1.22]
[1727128384226,0.37618,2658.1,2658.0,1.22]
[1727128384613,1.85070286,2658.1,2658.0,1.22]
[1727128385322,0.37618,2658.1,2658.0,1.22]
[1727128385522,1.85070286,2658.1,2658.0,1.22]
[1727128385719,0.37618,2658.1,2658.0,1.22]
[1727128385921,1.35870135,2658.1,2658.0,1.22]
[1727128386127,1.85070286,2658.1,2658.0,1.22]
[1727128387129,1.35873225,2658.1,2658.0,1.22]
[1727128388632,0.37618,2658.1,2658.0,1.22]
[1727128388833,1.85070286,2658.1,2658.0,1.22]
[1727128389042,0.37618,2658.1,2658.0,1.22]
[1727128389428,1.3585957,2658.1,2658.0,1.22]
[1727128389629,1.3586002,2658.1,2658.0,1.22]
[1727128392024,1.3586002,2658.1,2657.7,0.98672319]
[1727128392228,1.3586002,2658.1,2658.0,1.22]
[1727128397436,0.37618,2658.1,2658.0,1.22]
[1727128397636,1.85070286,2658.1,2658.0,1.22]
[1727128398138,4.13858,2658.1,2658.0,1.22]
[1727128398336,5.61310286,2658.1,2658.0,1.22]
[1727128400935,1.85070286,2658.1,2658.0,1.22]
[1727128401137,5.61310286,2658.1,2658.0,1.22]
[1727128401335,4.13858,2658.1,2658.0,1.22]
[1727128401537,5.61310286,2658.1,2658.0,1.22]
[1727128403845,4.13858,2658.1,2658.0,1.22]
[1727128404038,5.12088978,2658.1,2658.0,1.22]
[1727128404235,4.13858,2658.1,2658.0,1.22]
[1727128404440,3.7624,2658.1,2658.0,1.5962]
[1727128404635,0.98235756,2658.1,2658.0,1.5962]
[1727128406162,0.98235756,2658.1,2658.0,1.22]
[1727128406347,1.35853756,2658.1,2658.0,1.22]
[1727128406648,1.35853756,2658.1,2658.0,1.5962]
[1727128406649,0.98235756,2658.1,2658.0,1.5962]
[1727128407252,0.98235756,2658.1,2658.0,1.22]
[1727128411038,3.58240286,2658.2,2658.0,1.22]
[1727128411447,1.47452286,2658.1,2658.0,1.22]
[1727128411638,3.58240286,2658.2,2658.0,1.22]
[1727128411837,1.47452286,2658.1,2658.0,1.22]
[1727128414340,1.47494834,2658.1,2658.0,1.22]
[1727128414549,4.04969703,2658.2,2658.0,1.22]
[1727128414847,1.47495663,2658.1,2658.0,1.22]
[1727128415051,1.47499587,2658.2,2658.1,8.02058879]
[1727128415244,0.98341641,2658.5,2658.3,0.9404]
[1727128415444,0.98341377,2658.5,2658.4,8.17447653]
[1727128415747,0.98341377,2658.7,2658.6,0.37611]
[1727128416047,3.19899587,2658.8,2658.7,0.3761]
[1727128418051,1.47499587,2658.9,2658.6,2.20613991]
[1727128418238,0.98327587,2659.0,2658.8,2.69920987]
[1727128418441,0.98327587,2659.2,2659.1,0.37604]
[1727128418746,1.7066,2659.5,2659.4,0.376]
[1727128418747,2.68987587,2659.5,2659.4,0.376]
[1727128418948,2.68987587,2659.5,2659.4,1.596]
[1727128418949,2.65987587,2659.5,2659.4,1.596]
[1727128419448,0.98327587,2659.6,2659.4,1.596]
[1727128419646,0.98327587,2659.6,2659.5,0.37599]
[1727128420040,4.19107587,2659.7,2659.5,4.13599]
[1727128420245,4.19107587,2659.7,2659.6,1.59597]
[1727128420452,3.2078,2659.7,2659.6,1.59597]
[1727128422450,3.16919587,2660.0,2659.6,1.59597]
[1727128422451,1.6942,2660.0,2659.6,1.59597]
[1727128422652,1.6942,2660.0,2659.8,1.22]
[1727128425039,2.07012,2660.0,2659.8,1.22]
[1727128426454,1.6942,2660.0,2659.8,1.22]
[1727128426654,2.07012,2660.0,2659.8,1.22]
[1727128427544,1.6942,2660.0,2659.8,1.22]
[1727128428849,0.37591,2660.1,2659.8,1.22]
[1727128429048,0.37591,2660.1,2660.0,1.22]
[1727128436646,1.6078,2660.2,2660.0,1.59591]
[1727128436852,1.6078,2660.2,2660.0,1.22]
[1727128437052,1.6078,2660.2,2660.0,1.59591]
[1727128437657,3.2078,2660.7,2660.2,0.37589]
[1727128437953,2.09155,2660.5,2660.2,0.37589]
[1727128438348,1.6514,2660.4,2660.1,2.08729]
[1727128438550,1.6514,2660.4,2660.2,0.37588]
[1727128439470,1.6514,2660.4,2660.3,1.22]
[1727128444861,2.02726,2660.4,2660.3,1.22]
[1727128445064,5.23506,2660.4,2660.3,1.22]
[1727128445455,8.6184,2660.4,2659.9,0.37593]
[1727128445665,4.8592,2660.4,2660.2,1.22]
[1727128445864,0.37587,2660.3,2660.2,1.22]
[1727128446369,0.37592,2660.0,2659.5,2.438]
[1727128446569,0.37592,2660.0,2659.9,1.22]
[1727128448067,3.68232,2660.0,2659.9,1.22]
[1727128448784,5.24982,2660.0,2659.9,1.22]
[1727128456470,0.37595,2659.8,2659.6,0.37597]
[1727128456672,0.37595,2659.8,2659.7,1.22]
[1727128463372,0.37595,2659.8,2659.7,2.20490145]
[1727128463773,1.35921587,2659.9,2659.7,2.58086145]
[1727128464383,9.55669587,2660.0,2659.7,2.20490145]
[1727128464384,1.35921587,2659.8,2659.7,2.20490145]
[1727128464681,1.35921587,2659.8,2659.7,3.34842171]
[1727128465582,1.35921587,2659.8,2659.7,2.36352026]
[1727128466374,1.35921587,2659.8,2659.7,3.84273013]
[1727128469184,0.98327587,2659.8,2659.7,4.21926013]
[1727128469381,1.35921587,2659.8,2659.7,3.84330013]
[1727128469684,0.98327587,2659.8,2659.7,4.21926013]
[1727128470078,1.35921587,2659.8,2659.7,3.84330013]
[1727128470376,0.98327587,2659.8,2659.7,4.21926013]
[1727128470582,1.35921587,2659.8,2659.7,3.84330013]
[1727128470884,0.98327587,2659.8,2659.7,4.21926013]
[1727128471181,1.35921587,2659.8,2659.7,3.84330013]
[1727128471779,0.98327587,2659.8,2659.7,4.21926013]
[1727128472775,1.35921587,2659.8,2659.7,4.21926013]
[1727128473386,0.98327587,2659.8,2659.7,4.21926013]
[1727128473583,0.98327587,2659.8,2659.7,3.84330013]
[1727128473781,1.35921587,2659.8,2659.7,3.84330013]
[1727128474172,1.35921587,2659.8,2659.7,3.84344053]
[1727128479085,1.35921587,2659.8,2659.7,3.85265679]
[1727128485689,0.98327587,2659.8,2659.7,4.22861679]
[1727128486096,0.98327587,2659.8,2659.7,2.74940692]
[1727128486494,0.98327587,2659.8,2659.7,4.22894947]
[1727128487291,0.98327587,2659.8,2659.7,2.74940692]
[1727128487898,1.85093587,2659.9,2659.7,2.74940692]
[1727128488099,1.85093587,2659.9,2659.8,2.63313681]
[1727128488891,0.37594,2659.9,2659.8,2.63313681]
[1727128489092,1.854642,2659.9,2659.8,2.63313681]
[1727128489596,0.37593,2659.9,2659.8,2.63313681]
[1727128491393,2.32728529,2659.9,2659.8,2.63313681]
[1727128492000,7.20117529,2660.0,2659.8,1.52938692]
[1727128492318,7.20117529,2660.0,2659.9,3.85394056]
[1727128493789,7.20117529,2660.0,2659.9,3.85406818]
[1727128496302,7.20117529,2660.0,2659.9,4.22999818]
[1727128498495,7.20117529,2660.0,2659.9,4.22923047]
[1727128501997,7.20117529,2660.0,2659.9,4.22913634]
[1727128502202,7.20117529,2660.0,2659.9,3.85320634]
[1727128502591,7.20117529,2660.0,2659.9,2.63320634]
[1727128504703,7.20117529,2660.0,2659.9,2.6332079]
[1727128504901,7.20117529,2660.0,2659.9,1.15271426]